fUSD/lending_fUSD_20240505
["ID","MTS","AMOUNT","RATE_DAILY","PERIOD"]
[326463405,1714939891769,-1378.33,0.00030958,7]
[326463406,1714939891782,-2278.88,0.00030958,7]
[326463407,1714939891792,-500.0,0.00030958,7]
[326463408,1714939891801,-500.0,0.00030958,7]
[326463409,1714939891811,-514.86,0.00030958,7]
[326463410,1714939891822,-864.52,0.00030958,7]
[326463411,1714939891833,-818.24,0.00030958,7]
[326463412,1714939891842,-1661.98,0.00030958,7]
[326463413,1714939891851,-1592.78,0.00030958,7]
[326463414,1714939891860,-734.35,0.00030958,7]
[326463415,1714939891869,-20000.0,0.00030958,2]
[326463416,1714939891878,-1192.88,0.00030958,7]
[326463417,1714939891887,-1029.09,0.00030958,7]
[326463418,1714939891896,-553.31,0.00030958,7]
[326463419,1714939891905,-547.95,0.00030958,7]
[326463420,1714939891914,-2785.72,0.00030958,7]
[326463421,1714939891924,-687.45,0.00030958,7]
[326463422,1714939891933,-899.43,0.00030958,7]
[326463423,1714939891942,-500.0,0.00030958,7]
[326463424,1714939891951,-1109.14,0.00030958,7]
[326463425,1714939891960,-1816.85,0.00030958,7]
[326463426,1714939891969,-1673.61,0.00030958,7]
[326463427,1714939891979,-670.55,0.00030958,7]
[326463428,1714939891988,-1378.58,0.00030958,7]
[326463429,1714939891997,-1379.54,0.00030958,7]
[326463430,1714939892007,-705.63,0.00030958,7]
[326463431,1714939892016,-1772.96,0.00030958,7]
[326463432,1714939892025,-544.35068049,0.00030958,7]
[326463433,1714939892034,-782.88,0.00030958,7]
[326463434,1714939892043,-5000.0,0.00030958,7]
[326463435,1714939892052,-1015.84,0.00030958,7]
[326463436,1714939892061,-1912.93,0.00030958,7]
[326463437,1714939892069,-578.0,0.00030958,7]
[326463438,1714939892079,-782.08,0.00030958,7]
[326463439,1714939892088,-527.02,0.00030958,7]
[326463440,1714939892097,-2543.61,0.00030958,7]
[326463441,1714939892107,-500.0,0.00030958,7]
[326463442,1714939892115,-1431.08,0.00030958,7]
[326463443,1714939892126,-1470.88,0.00030958,7]
[326463444,1714939892136,-638.56,0.00030958,7]
[326463445,1714939892146,-1322.07,0.00030958,7]
[326463446,1714939892156,-702.47,0.00030958,7]
[326463447,1714939892166,-1738.55,0.00030958,7]
[326463448,1714939892176,-1058.25,0.00030958,7]
[326463449,1714939892186,-500.0,0.00030958,7]
[326463450,1714939892195,-565.97,0.00030958,7]
[326463451,1714939892204,-500.0,0.00030958,7]
[326463452,1714939892213,-762.24,0.00030958,7]
[326463453,1714939892228,-1631.73,0.00030958,7]
[326463454,1714939892237,-1340.8,0.00030958,7]
[326463455,1714939892246,-2697.92,0.00030958,7]
[326463456,1714939892255,-648.37,0.00030958,7]
[326463457,1714939892266,-816.75,0.00030958,7]
[326463458,1714939892276,-679.55,0.00030958,7]
[326463459,1714939892286,-575.34,0.00030958,7]
[326463460,1714939892299,-508.49669768,0.00030958,7]
[326463461,1714939892309,-1108.53,0.00030958,7]
[326463462,1714939892319,-2110.68,0.00030958,7]
[326463463,1714939892328,-500.0,0.00030958,7]
[326463464,1714939892338,-3291.68,0.00030958,7]
[326463465,1714939892347,-1582.39,0.00030958,7]
[326463466,1714939892356,-1153.4,0.00030958,7]
[326463467,1714939892365,-500.0,0.00030958,7]
[326463468,1714939892375,-500.0,0.00030958,7]
[326463469,1714939892384,-1288.2,0.00030958,7]
[326463470,1714939892393,-920.23,0.00030958,7]
[326463471,1714939892402,-2601.39,0.00030958,7]
[326463472,1714939892411,-1948.74,0.00030958,7]
[326463473,1714939892420,-628.64,0.00030958,7]
[326463474,1714939892429,-500.0,0.00030958,7]
[326463475,1714939892439,-1605.12,0.00030958,7]
[326463476,1714939892448,-1500.0,0.00030958,7]
[326463477,1714939892458,-500.0,0.00030958,7]
[326463478,1714939892467,-791.15,0.00030958,7]
[326463479,1714939892476,-761.65,0.00030958,7]
[326463480,1714939892486,-527.88,0.00030958,7]
[326463481,1714939892495,-500.0,0.00030958,7]
[326463482,1714939892504,-543.55,0.00030958,7]
[326463483,1714939892513,-500.0,0.00030958,7]
[326463484,1714939892522,-706.67,0.00030958,7]
[326463485,1714939892531,-3729.52,0.00030958,7]
[326463486,1714939892541,-644.03,0.00030958,7]
[326463487,1714939892551,-1163.71,0.00030958,7]
[326463488,1714939892560,-864.98,0.00030958,7]
[326463489,1714939892570,-1442.96,0.00030958,7]
[326463490,1714939892580,-1277.38,0.00030958,7]
[326463491,1714939892589,-500.0,0.00030958,7]
[326463492,1714939892598,-871.54,0.00030958,7]
[326463493,1714939892607,-812.74,0.00030958,7]
[326463494,1714939892616,-500.0,0.00030958,7]
[326463495,1714939892626,-943.73,0.00030958,7]
[326463496,1714939892635,-500.0,0.00030958,7]
[326463497,1714939892644,-500.0,0.00030958,7]
[326463498,1714939892656,-500.0,0.00030958,7]
[326463499,1714939892665,-1409.78,0.00030958,7]
[326463500,1714939892674,-608.7,0.00030958,7]
[326463501,1714939892683,-500.0,0.00030958,7]
[326463502,1714939892693,-770.34,0.00030958,7]
[326463503,1714939892702,-678.81,0.00030958,7]
[326463504,1714939892712,-500.0,0.00030958,7]
[326463505,1714939892721,-2013.03,0.00030958,7]
[326463506,1714939892730,-2257.08,0.00030958,7]
[326463507,1714939892741,-1313.57,0.00030958,7]
[326463508,1714939892751,-812.54,0.00030958,7]
[326463509,1714939892761,-500.0,0.00030958,7]
[326463510,1714939892771,-581.54,0.00030958,7]
[326463511,1714939892781,-500.0,0.00030958,7]
[326463512,1714939892792,-1192.74,0.00030958,7]
[326463513,1714939892801,-1072.03,0.00030958,7]
[326463514,1714939892812,-880.8,0.00030958,7]
[326463515,1714939892824,-500.0,0.00030958,7]
[326463516,1714939892835,-500.0,0.00030958,7]
[326463517,1714939892846,-500.0,0.00030958,7]
[326463518,1714939892855,-1507.96,0.00030958,7]
[326463519,1714939892864,-500.0,0.00030958,7]
[326463520,1714939892873,-1677.02,0.00030958,7]
[326463521,1714939892884,-500.0,0.00030958,7]
[326463522,1714939892893,-1310.8,0.00030958,7]
[326463523,1714939892903,-861.02,0.00030958,7]
[326463524,1714939892912,-1434.52,0.00030958,7]
[326463525,1714939892921,-1278.0,0.00030958,7]
[326463526,1714939892929,-1309.71,0.00030958,7]
[326463527,1714939892939,-3093.85,0.00030958,2]
[326463528,1714939892948,-555.82,0.00030958,7]
[326463529,1714939892957,-758.19,0.00030958,7]
[326463530,1714939892967,-500.0,0.00030958,7]
[326463531,1714939892976,-628.5,0.00030958,7]
[326463532,1714939892987,-683.82,0.00030958,7]
[326463533,1714939892996,-1883.01,0.00030958,7]
[326463534,1714939893006,-790.56,0.00030958,7]
[326463535,1714939893015,-1509.6,0.00030958,7]
[326463536,1714939893023,-500.0,0.00030958,7]
[326463537,1714939893033,-500.0,0.00030958,7]
[326463538,1714939893042,-595.36,0.00030958,7]
[326463539,1714939893051,-500.0,0.00030958,7]
[326463540,1714939893060,-683.58,0.00030958,7]
[326463541,1714939893070,-2203.48,0.00030958,7]
[326463542,1714939893081,-895.0,0.00030958,7]
[326463543,1714939893090,-2817.08,0.00030958,7]
[326463544,1714939893099,-1900.36,0.00030958,7]
[326463545,1714939893108,-500.0,0.00030958,7]
[326463546,1714939893118,-500.0,0.00030958,7]
[326463547,1714939893128,-500.0,0.00030958,7]
[326463548,1714939893137,-1468.14,0.00030958,7]
[326463549,1714939893146,-500.0,0.00030958,7]
[326463550,1714939893156,-879.47,0.00030958,7]
[326463551,1714939893166,-624.67,0.00030958,7]
[326463552,1714939893177,-1257.45,0.00030958,7]
[326463553,1714939893187,-500.0,0.00030958,7]
[326463554,1714939893197,-604.76,0.00030958,7]
[326463555,1714939893208,-910.99,0.00030958,7]
[326463556,1714939893221,-916.71,0.00030958,7]
[326463557,1714939893230,-1177.77,0.00030958,7]
[326463558,1714939893240,-635.79,0.00030958,7]
[326463559,1714939893250,-5000.0,0.00030958,7]
[326463560,1714939893260,-882.44,0.00030958,7]
[326463561,1714939893270,-500.0,0.00030958,7]
[326463562,1714939893279,-500.0,0.00030958,7]
[326463563,1714939893291,-509.31,0.00030958,7]
[326463564,1714939893300,-1007.46,0.00030958,7]
[326463565,1714939893309,-1274.91,0.00030958,7]
[326463566,1714939893319,-500.0,0.00030958,7]
[326463567,1714939893328,-500.0,0.00030958,7]
[326463568,1714939893338,-396.12287452,0.00030958,7]
[326463569,1714939893347,-855.8,0.00030958,7]
[326463570,1714939893357,-1619.32,0.00030958,7]
[326463571,1714939893366,-919.75,0.00030958,7]
[326463572,1714939893376,-926.49,0.00030958,7]
[326463573,1714939893387,-500.0,0.00030958,7]
[326463574,1714939893397,-1975.56,0.00030958,7]
[326463575,1714939893406,-1353.37,0.00030958,7]
[326463576,1714939893415,-885.93,0.00030958,7]
[326463577,1714939893425,-500.0,0.00030958,7]
[326463578,1714939893435,-500.0,0.00030958,7]
[326463579,1714939893445,-2904.21,0.00030958,7]
[326463580,1714939893455,-500.0,0.00030958,7]
[326463581,1714939893464,-500.0,0.00030958,7]
[326463582,1714939893474,-1101.38,0.00030958,7]
[326463583,1714939893485,-1317.72,0.00030958,7]
[326463584,1714939893494,-1565.6,0.00030958,7]
[326463585,1714939893505,-1885.36,0.00030958,7]
[326463586,1714939893516,-1390.92,0.00030958,7]
[326463587,1714939893526,-500.0,0.00030958,7]
[326463588,1714939893536,-1976.17,0.00030958,7]
[326463589,1714939893545,-565.58,0.00030958,7]
[326463590,1714939893554,-521.32,0.00030958,7]
[326463591,1714939893564,-500.0,0.00030958,7]
[326463592,1714939893573,-500.0,0.00030958,7]
[326463593,1714939893582,-1485.83,0.00030958,7]
[326463594,1714939893592,-1602.19,0.00030958,7]
[326463595,1714939893601,-988.8,0.00030958,7]
[326463596,1714939893611,-500.0,0.00030958,7]
[326463597,1714939893620,-904.84,0.00030958,7]
[326463598,1714939893629,-1010.87,0.00030958,7]
[326463599,1714939893639,-500.0,0.00030958,7]
[326463600,1714939893648,-500.0,0.00030958,7]
[326463601,1714939893658,-796.38,0.00030958,7]
[326463602,1714939893667,-1471.83,0.00030958,7]
[326463603,1714939893676,-500.0,0.00030958,7]
[326463604,1714939893685,-2384.51,0.00030958,7]
[326463605,1714939893694,-1229.24,0.00030958,7]
[326463606,1714939893705,-1313.14,0.00030958,7]
[326463607,1714939893714,-1850.78,0.00030958,7]
[326463608,1714939893723,-1418.23,0.00030958,7]
[326463609,1714939893732,-902.26,0.00030958,7]
[326463610,1714939893741,-2053.76,0.00030958,7]
[326463611,1714939893751,-3255.39,0.00030958,7]
[326463612,1714939893760,-624.8,0.00030958,7]
[326463613,1714939893769,-500.0,0.00030958,7]
[326463614,1714939893778,-1208.12,0.00030958,7]
[326463615,1714939893788,-2671.52,0.00030958,7]
[326463616,1714939893798,-599.02,0.00030958,7]
[326463617,1714939893810,-500.0,0.00030958,7]
[326463618,1714939893819,-1395.03,0.00030958,7]
[326463619,1714939893830,-1629.22,0.00030958,7]
[326463620,1714939893839,-709.38,0.00030958,7]
[326463621,1714939893849,-3415.55,0.00030958,7]
[326463622,1714939893858,-754.17,0.00030958,7]
[326463623,1714939893867,-278.13,0.00030958,7]
[326463624,1714939893876,-500.0,0.00030958,7]
[326463625,1714939893886,-163.73003785,0.00030958,7]
[326463626,1714939893896,-500.0,0.00030958,7]
[326463627,1714939893906,-456.38280011,0.00030958,7]
[326463628,1714939893917,-500.0,0.00030958,7]
[326463629,1714939893928,-1145.17,0.00030958,7]
[326463630,1714939893937,-1886.54,0.00030958,7]
[326463631,1714939893948,-543.64,0.00030958,7]
[326463632,1714939893958,-642.66,0.00030958,7]
[326463633,1714939893967,-1316.4,0.00030958,7]
[326463634,1714939893977,-500.0,0.00030958,7]
[326463635,1714939893987,-500.0,0.00030958,7]
[326463636,1714939893997,-855.02,0.00030958,7]
[326463637,1714939894007,-1616.45,0.00030958,7]
[326463638,1714939894018,-1513.55,0.00030958,7]
[326463639,1714939894027,-1594.72,0.00030958,7]
[326463640,1714939894038,-1285.76,0.00030958,7]
[326463641,1714939894047,-3512.73,0.00030958,7]
[326463642,1714939894056,-1402.87,0.00030958,7]
[326463643,1714939894066,-912.25,0.00030958,7]
[326463644,1714939894075,-500.0,0.00030958,7]
[326463645,1714939894084,-672.96,0.00030958,7]
[326463646,1714939894094,-500.0,0.00030958,7]
[326463647,1714939894103,-1751.83,0.00030958,7]
[326463648,1714939894113,-500.0,0.00030958,7]
[326463649,1714939894122,-1500.04,0.00030958,7]
[326463650,1714939894131,-1277.9,0.00030958,7]
[326463651,1714939894141,-1505.13,0.00030958,7]
[326463652,1714939894151,-799.33,0.00030958,7]
[326463653,1714939894160,-500.0,0.00030958,7]
[326463654,1714939894169,-500.0,0.00030958,7]
[326463655,1714939894178,-652.23,0.00030958,7]
[326463656,1714939894190,-1356.14,0.00030958,7]
[326463657,1714939894199,-500.0,0.00030958,7]
[326463658,1714939894210,-993.76,0.00030958,7]
[326463659,1714939894225,-2123.31,0.00030958,7]
[326463660,1714939894234,-3265.84,0.00030958,7]
[326463661,1714939894244,-479.74865038,0.00030958,7]
[326463662,1714939894257,-515.99,0.00030958,7]
[326463663,1714939894266,-500.0,0.00030958,7]
[326463664,1714939894276,-500.0,0.00030958,7]
[326463665,1714939894286,-664.69,0.00030958,7]
[326463666,1714939894299,-1849.04,0.00030958,7]
[326463667,1714939894309,-500.0,0.00030958,7]
[326463668,1714939894320,-500.0,0.00030958,7]
[326463669,1714939894330,-200.31658627,0.00030958,7]
[326463670,1714939894339,-2276.76,0.00030958,7]
[326463671,1714939894350,-588.95,0.00030958,7]
[326463672,1714939894360,-1168.69,0.00030958,7]
[326463673,1714939894370,-674.3,0.00030958,7]
[326463674,1714939894379,-500.0,0.00030958,7]
[326463675,1714939894389,-1929.39,0.00030958,7]
[326463676,1714939894398,-500.0,0.00030958,7]
[326463677,1714939894408,-1254.7,0.00030958,7]
[326463678,1714939894417,-681.37,0.00030958,7]
[326463679,1714939894426,-647.43,0.00030958,7]
[326463680,1714939894435,-500.0,0.00030958,7]
[326463681,1714939894445,-1258.08,0.00030958,7]
[326463682,1714939894454,-1180.26,0.00030958,7]
[326463683,1714939894464,-653.89,0.00030958,7]
[326463684,1714939894474,-3196.14,0.00030958,7]
[326463685,1714939894483,-765.71,0.00030958,7]
[326463686,1714939894493,-728.05,0.00030958,7]
[326463687,1714939894504,-641.34,0.00030958,7]
[326463688,1714939894513,-500.0,0.00030958,7]
[326463689,1714939894523,-575.31,0.00030958,7]
[326463690,1714939894532,-1011.66,0.00030958,7]
[326463691,1714939894543,-810.93,0.00030958,7]
[326463692,1714939894552,-500.0,0.00030958,7]
[326463693,1714939894561,-500.0,0.00030958,7]
[326463694,1714939894571,-500.0,0.00030958,7]
[326463695,1714939894580,-500.0,0.00030958,7]
[326463696,1714939894590,-726.45,0.00030958,7]
[326463697,1714939894599,-503.84543909,0.00030958,7]
[326463698,1714939894608,-1113.4,0.00030958,7]
[326463699,1714939894618,-1062.2,0.00030958,7]
[326463700,1714939894627,-526.44076019,0.00030958,7]
[326463701,1714939894636,-500.0,0.00030958,7]
[326463702,1714939894645,-739.8,0.00030958,7]
[326463703,1714939894655,-950.88,0.00030958,7]
[326463704,1714939894664,-500.0,0.00030958,7]
[326463705,1714939894673,-1113.44,0.00030958,7]
[326463706,1714939894683,-500.0,0.00030958,7]
[326463707,1714939894692,-1830.68,0.00030958,7]
[326463708,1714939894702,-500.0,0.00030958,7]
[326463709,1714939894712,-1450.14,0.00030958,7]
[326463710,1714939894724,-963.18,0.00030958,7]
[326463711,1714939894733,-836.64,0.00030958,7]
[326463712,1714939894743,-500.0,0.00030958,7]
[326463713,1714939894753,-1611.06,0.00030958,7]
[326463714,1714939894763,-725.62,0.00030958,7]
[326463715,1714939894773,-1456.93,0.00030958,7]
[326463716,1714939894782,-500.0,0.00030958,7]
[326463717,1714939894792,-2144.94,0.00030958,7]
[326463718,1714939894801,-736.34,0.00030958,7]
[326463719,1714939894810,-2792.65,0.00030958,7]
[326463720,1714939894819,-500.0,0.00030958,7]
[326463721,1714939894829,-922.68,0.00030958,7]
[326463722,1714939894838,-500.0,0.00030958,7]
[326463723,1714939894847,-1421.32,0.00030958,7]
[326463724,1714939894857,-647.1,0.00030958,7]
[326463725,1714939894866,-2026.33,0.00030958,7]
[326463726,1714939894876,-1500.34,0.00030958,7]
[326463727,1714939894885,-1293.93,0.00030958,7]
[326463728,1714939894894,-1465.22,0.00030958,2]
[326463729,1714939894903,-1684.28,0.00030958,7]
[326463730,1714939894913,-500.0,0.00030958,7]
[326463731,1714939894922,-500.0,0.00030958,7]
[326463732,1714939894932,-500.0,0.00030958,7]
[326463733,1714939894944,-1822.97,0.00030958,7]
[326463734,1714939894953,-658.77,0.00030958,7]
[326463735,1714939894963,-1176.22,0.00030958,7]
[326463736,1714939894972,-2005.89,0.00030958,7]
[326463737,1714939894983,-653.0,0.00030958,7]
[326463738,1714939894992,-986.38,0.00030958,7]
[326463739,1714939895003,-500.0,0.00030958,7]
[326463740,1714939895013,-40148.36,0.00030958,7]
[326463741,1714939895023,-500.0,0.00030958,7]
[326463742,1714939895034,-591.3,0.00030958,7]
[326463743,1714939895044,-8623.29,0.00030958,7]
[326463744,1714939895054,-617.89,0.00030958,7]
[326463745,1714939895063,-500.0,0.00030958,7]
[326463746,1714939895072,-504.94,0.00030958,7]
[326463747,1714939895082,-1218.18,0.00030958,7]
[326463748,1714939895091,-660.41,0.00030958,7]
[326463749,1714939895100,-1724.68,0.00030958,7]
[326463750,1714939895111,-500.0,0.00030958,7]
[326463751,1714939895120,-612.36,0.00030958,7]
[326463752,1714939895130,-500.0,0.00030958,7]
[326463753,1714939895140,-682.54,0.00030958,7]
[326463754,1714939895149,-733.53,0.00030958,7]
[326463755,1714939895162,-513.3,0.00030958,7]
[326463756,1714939895171,-500.0,0.00030958,7]
[326463757,1714939895181,-705.47,0.00030958,7]
[326463758,1714939895191,-581.84,0.00030958,7]
[326463759,1714939895201,-2131.57,0.00030958,7]
[326463760,1714939895215,-500.0,0.00030958,7]
[326463761,1714939895233,-3832.85,0.00030958,7]
[326463762,1714939895248,-1141.75,0.00030958,7]
[326463763,1714939895257,-1317.36,0.00030958,7]
[326463764,1714939895267,-1803.0,0.00030958,7]
[326463765,1714939895482,-3550.05,0.00030958,7]
[326463766,1714939895493,-646.69,0.00030958,7]
[326463767,1714939895502,-500.0,0.00030958,7]
[326463768,1714939895512,-915.29,0.00030958,7]
[326463769,1714939895521,-2178.12,0.00030958,7]
[326463770,1714939895531,-500.0,0.00030958,7]
[326463771,1714939895540,-3863.49,0.00030958,7]
[326463772,1714939895550,-500.0,0.00030958,7]
[326463773,1714939895559,-546.32,0.00030958,7]
[326463774,1714939895569,-500.0,0.00030958,7]
[326463775,1714939895579,-543.07,0.00030958,7]
[326463776,1714939895588,-3887.32,0.00030958,7]
[326463777,1714939895598,-1028.48,0.00030958,7]
[326463778,1714939895607,-470.7112991,0.00030958,7]
[326463779,1714939895616,-2013.36,0.00030958,7]
[326463780,1714939895625,-2978.99,0.00030958,7]
[326463781,1714939895635,-500.0,0.00030958,7]
[326463782,1714939895644,-500.0,0.00030958,7]
[326463783,1714939895654,-838.98,0.00030958,7]
[326463784,1714939895665,-500.0,0.00030958,7]
[326463785,1714939895675,-1105.89,0.00030958,7]
[326463786,1714939895685,-500.0,0.00030958,7]
[326463787,1714939895695,-1117.14,0.00030958,7]
[326463788,1714939895704,-1099.64,0.00030958,7]
[326463789,1714939895714,-1243.16,0.00030958,7]
[326463790,1714939895725,-500.0,0.00030958,7]
[326463791,1714939895734,-10308.36,0.00030958,7]
[326463792,1714939895743,-500.0,0.00030958,7]
[326463793,1714939895754,-1872.86,0.00030958,7]
[326463794,1714939895764,-560.65,0.00030958,7]
[326463795,1714939895774,-861.02,0.00030958,7]
[326463796,1714939895785,-500.0,0.00030958,7]
[326463797,1714939895795,-500.0,0.00030958,7]
[326463798,1714939895805,-937.21,0.00030958,7]
[326463799,1714939895814,-1989.04,0.00030958,7]
[326463800,1714939895824,-9206.61,0.00030958,7]
[326463801,1714939895833,-500.0,0.00030958,7]
[326463802,1714939895842,-4725.69,0.00030958,7]
[326463803,1714939895852,-580.17,0.00030958,7]
[326463804,1714939895862,-42789.19,0.00030958,7]
[326463805,1714939895872,-1884.35,0.00030958,7]
[326463806,1714939895882,-500.0,0.00030958,7]
[326463807,1714939895892,-2218.68,0.00030958,7]
[326463808,1714939895901,-932.46,0.00030958,7]
[326463809,1714939895910,-19080.21,0.00030958,7]
[326463810,1714939895919,-500.0,0.00030958,2]
[326463811,1714939895929,-3134.51,0.00030958,7]
[326463812,1714939895938,-500.0,0.00030958,7]
[326463813,1714939895947,-398.98622685,0.00030958,7]
[326463814,1714939895956,-28592.88,0.00030958,7]
[326463815,1714939895966,-601.9,0.00030958,7]
[326463816,1714939895975,-500.0,0.00030958,7]
[326463817,1714939895984,-500.0,0.00030958,7]
[326463818,1714939895994,-4432.07,0.00030958,7]
[326463819,1714939896004,-640.92,0.00030958,7]
[326463820,1714939896014,-500.0,0.00030958,7]
[326463821,1714939896024,-827.56,0.00030958,7]
[326463822,1714939896033,-980.25,0.00030958,7]
[326463823,1714939896043,-500.0,0.00030958,7]
[326463824,1714939896052,-1168.97,0.00030958,7]
[326463825,1714939896062,-12858.93,0.00030958,7]
[326463826,1714939896071,-538.44,0.00030958,7]
[326463827,1714939896080,-1122.87,0.00030958,7]
[326463828,1714939896089,-7639.77,0.00030958,7]
[326463829,1714939896100,-1534.37,0.00030958,7]
[326463830,1714939896110,-2076.62,0.00030958,7]
[326463831,1714939896119,-882.22,0.00030958,7]
[326463832,1714939896128,-500.0,0.00030958,7]
[326463833,1714939896138,-1494.76,0.00030958,7]
[326463834,1714939896148,-3296.01,0.00030958,7]
[326463835,1714939896158,-3855.99,0.00030958,7]
[326463836,1714939896169,-500.0,0.00030958,7]
[326463837,1714939896180,-1078.94,0.00030958,7]
[326463838,1714939896189,-3226.11,0.00030958,7]
[326463839,1714939896198,-500.0,0.00030958,7]
[326463840,1714939896208,-817.95,0.00030958,7]
[326463841,1714939896222,-1387.03,0.00030958,7]
[326463842,1714939896231,-932.18,0.00030958,7]
[326463843,1714939896240,-500.0,0.00030958,7]
[326463844,1714939896250,-2065.75,0.00030958,7]
[326463845,1714939896261,-500.0,0.00030958,7]
[326463846,1714939896273,-3119.0,0.00030958,7]
[326463847,1714939896283,-500.0,0.00030958,7]
[326463848,1714939896295,-500.0,0.00030958,7]
[326463849,1714939896304,-500.0,0.00030958,7]
[326463850,1714939896313,-500.0,0.00030958,7]
[326463851,1714939896322,-6003.66,0.00030958,7]
[326463852,1714939896331,-1371.32,0.00030958,7]
[326463853,1714939896340,-500.0,0.00030958,7]
[326463854,1714939896350,-3486.15,0.00030958,7]
[326463855,1714939896359,-3770.12,0.00030958,7]
[326463856,1714939896370,-1405.61,0.00030958,7]
[326463857,1714939896379,-5356.5,0.00030958,7]
[326463858,1714939896389,-500.0,0.00030958,7]
[326463859,1714939896398,-1894.16,0.00030958,7]
[326463860,1714939896407,-586.88,0.00030958,7]
[326463861,1714939896417,-761.11,0.00030958,7]
[326463862,1714939896427,-7392.1,0.00030958,7]
[326463863,1714939896436,-500.0,0.00030958,7]
[326463864,1714939896445,-966.75,0.00030958,7]
[326463865,1714939896455,-4492.65,0.00030958,7]
[326463866,1714939896464,-3838.62,0.00030958,7]
[326463867,1714939896473,-548.44,0.00030958,7]
[326463868,1714939896482,-1397.72,0.00030958,7]
[326463869,1714939896492,-768.9,0.00030958,7]
[326463870,1714939896501,-719.2,0.00030958,7]
[326463871,1714939896510,-753.06,0.00030958,7]
[326463872,1714939896520,-500.0,0.00030958,7]
[326463873,1714939896529,-980.99,0.00030958,7]
[326463874,1714939896538,-6774.65,0.00030958,7]
[326463875,1714939896547,-4451.68,0.00030958,7]
[326463876,1714939896557,-500.0,0.00030958,7]
[326463877,1714939896566,-1516.7,0.00030958,7]
[326463878,1714939896576,-545.27,0.00030958,7]
[326463879,1714939896586,-12773.98,0.00030958,7]
[326463880,1714939896595,-3155.83,0.00030958,7]
[326463881,1714939896605,-3332.42,0.00030958,7]
[326463882,1714939896614,-500.0,0.00030958,7]
[326463883,1714939896624,-685.34,0.00030958,7]
[326463884,1714939896634,-753.85,0.00030958,7]
[326463885,1714939896643,-1515.93,0.00030958,7]
[326463886,1714939896652,-1589.59,0.00030958,7]
[326463887,1714939896661,-1741.3,0.00030958,7]
[326463888,1714939896671,-2573.19,0.00030958,7]
[326463889,1714939896680,-500.0,0.00030958,7]
[326463890,1714939896689,-11963.14,0.00030958,7]
[326463891,1714939896698,-500.0,0.00030958,7]
[326463892,1714939896707,-3760.9,0.00030958,7]
[326463893,1714939896716,-500.0,0.00030958,7]
[326463894,1714939896727,-1242.63,0.00030958,7]
[326463895,1714939896737,-2018.25,0.00030958,7]
[326463896,1714939896746,-2175.58,0.00030958,7]
[326463897,1714939896756,-3052.03,0.00030958,7]
[326463898,1714939896765,-739.71,0.00030958,7]
[326463899,1714939896774,-500.0,0.00030958,7]
[326463900,1714939896783,-2811.96,0.00030958,7]
[326463901,1714939896793,-4024.61,0.00030958,7]
[326463902,1714939896802,-500.0,0.00030958,7]
[326463903,1714939896811,-1301.87,0.00030958,7]
[326463904,1714939896820,-3456.23,0.00030958,7]